bitfinex-derivatives/quotes_SOLF0:USTF0_20241231
["timestamp","ask_amount","ask_price","bid_price","bid_amount"]
[1735677668979,5.01632072,194.61,194.6,6.51205885]
[1735677669280,85.84448287,194.64,194.6,9.55205885]
[1735677669475,85.84448287,194.64,194.62,6.51205885]
[1735677670076,7.15989455,194.65,194.62,6.51205885]
[1735677670573,7.15989455,194.65,194.63,2.5732]
[1735677670975,7.15989455,194.65,194.62,9.08555885]
[1735677671280,2.5731,194.66,194.62,9.08555885]
[1735677674183,13.6719534,194.67,194.6,12.12575885]
[1735677674378,0.79484112,194.66,194.6,9.55205885]
[1735677674577,0.79492336,194.65,194.6,9.55205885]
[1735677674777,22.84348308,194.67,194.6,9.55205885]
[1735677674977,6.51205885,194.63,194.57,6.51205885]
[1735677675178,2.5737,194.61,194.56,3.04]
[1735677675379,6.51205885,194.63,194.56,3.04]
[1735677675582,0.79508968,194.62,194.56,3.04]
[1735677675981,2.5741,194.58,194.56,3.04]
[1735677676284,6.51205885,194.61,194.56,3.04]
[1735677676881,2.574,194.59,194.56,3.04]
[1735677677982,2.5739,194.6,194.56,5.6143]
[1735677679386,2.5739,194.6,194.56,2.5743]
[1735677679686,6.51205885,194.57,194.47,1.507]
[1735677679878,9.53505885,194.59,194.52,6.51205885]
[1735677680073,3.36934574,194.58,194.54,2.5746]
[1735677680285,13.6719534,194.61,194.54,6.51205885]
[1735677680482,0.79518023,194.6,194.54,6.51205885]
[1735677680684,0.79518023,194.6,194.56,6.51205885]
[1735677680885,0.79518023,194.6,194.54,6.51205885]
[1735677680886,7.15989455,194.6,194.54,6.51205885]
[1735677681086,2.5741,194.58,194.54,9.08655885]
[1735677682885,2.5743,194.57,194.53,5.6147]
[1735677683086,6.51205885,194.59,194.53,5.6147]
[1735677683279,0.79522767,194.58,194.52,6.51205885]
[1735677683481,6.51205885,194.57,194.48,6.51205885]
[1735677683685,6.51205885,194.55,194.48,6.51205885]
[1735677684289,2.5751,194.51,194.48,6.51205885]
[1735677684783,2.5752,194.5,194.46,9.08775885]
[1735677684985,10.37493618,194.55,194.46,6.51205885]
[1735677685185,0.79549668,194.54,194.46,6.51205885]
[1735677685387,2.575,194.51,194.47,2.5755]
[1735677685991,13.59747188,194.54,194.5,2.5751]
[1735677686189,0.79548856,194.53,194.5,2.5751]
[1735677686385,7.15989455,194.54,194.5,2.5751]
[1735677687391,6.51205885,194.55,194.5,2.5751]
[1735677687589,2.5747,194.53,194.5,2.5751]
[1735677688894,2.5747,194.53,194.48,6.51205885]
[1735677690087,2.5747,194.53,194.49,2.5752]
[1735677693403,5.3995334,194.56,194.48,6.51205885]
[1735677693603,3.36990508,194.55,194.51,2.575]
[1735677693796,2.5745,194.55,194.51,2.575]
[1735677695502,5.3995334,194.56,194.51,2.575]
[1735677695705,2.5747,194.54,194.51,2.575]
[1735677696601,7.9740334,194.56,194.52,2.5748]
[1735677696899,0.79538471,194.55,194.52,2.5748]
[1735677697505,3.36988471,194.55,194.52,2.5748]
[1735677697705,2.5745,194.55,194.52,2.5748]
[1735677698399,2.5747,194.54,194.5,6.51205885]
[1735677699503,8.04755885,194.56,194.5,9.08705885]
[1735677699809,2.5748,194.53,194.5,9.08705885]
[1735677701208,5.3995334,194.56,194.48,6.51205885]
[1735677701415,2.575,194.51,194.46,6.51205885]
[1735677702009,2.575,194.51,194.47,2.5755]
[1735677702317,6.51205885,194.52,194.45,6.51205885]
[1735677702520,0.79558887,194.51,194.44,2.5759]
[1735677703105,6.51205885,194.5,194.43,6.51205885]
[1735677703318,0.79564127,194.49,194.43,6.51205885]
[1735677703615,6.51205885,194.48,194.41,6.51205885]
[1735677704118,2.5758,194.46,194.42,2.5761]
[1735677705218,2.5758,194.46,194.41,6.51205885]
[1735677705416,2.5756,194.47,194.43,2.576]
[1735677705914,7.15989455,194.5,194.46,2.5756]
[1735677706120,7.15989455,194.5,194.47,6.51205885]
[1735677706415,7.15989455,194.5,194.45,6.51205885]
[1735677707119,9.55205885,194.54,194.45,6.51205885]
[1735677707318,0.79551251,194.53,194.47,2.5754]
[1735677707613,6.51205885,194.52,194.45,6.51205885]
[1735677707814,6.51205885,194.5,194.44,3.04]
[1735677708020,2.5757,194.46,194.43,6.51205885]
[1735677708518,2.5755,194.48,194.42,2.5762]
[1735677708713,0.79576238,194.47,194.42,2.5762]
[1735677708912,6.51205885,194.5,194.42,2.5762]
[1735677709114,0.79575787,194.49,194.42,2.5762]
[1735677709417,6.51205885,194.48,194.41,6.51205885]
[1735677709720,0.79575787,194.47,194.41,6.51205885]
[1735677710314,2.5759,194.45,194.41,9.08825885]
[1735677710519,9.56705885,194.48,194.41,6.51205885]
[1735677711014,2.5756,194.47,194.43,2.5761]
[1735677711218,2.5756,194.47,194.41,6.51205885]
[1735677711630,2.5756,194.47,194.42,2.5761]
[1735677711819,7.1965,194.49,194.45,6.51205885]
[1735677712016,5.6154,194.49,194.45,6.51205885]
[1735677712216,85.84448287,194.53,194.46,2.5756]
[1735677712217,88.88448287,194.53,194.46,2.5756]
[1735677712521,7.30759574,194.52,194.46,2.5756]
[1735677712722,6.51205885,194.52,194.45,6.51205885]
[1735677712924,3.04,194.53,194.47,9.08755885]
[1735677713117,0.795506,194.52,194.47,9.08755885]
[1735677713317,3.04,194.53,194.47,9.08755885]
[1735677713519,2.575,194.51,194.47,9.08755885]
[1735677713720,39.71022841,194.54,194.48,2.5753]
[1735677714024,0.79549648,194.53,194.47,6.51205885]
[1735677714225,39.71022841,194.54,194.47,6.51205885]
[1735677714420,0.79549285,194.53,194.47,6.51205885]
[1735677715023,18.27045124,194.54,194.47,6.51205885]
[1735677715223,0.79550354,194.53,194.47,6.51205885]
[1735677715425,2.5749,194.52,194.49,2.5753]
[1735677715619,2.5749,194.52,194.47,6.51205885]
[1735677716521,2.5752,194.5,194.46,2.5757]
[1735677716720,6.51205885,194.52,194.45,6.51205885]
[1735677716917,0.79560529,194.51,194.45,6.51205885]
[1735677717427,2.5754,194.49,194.45,9.08775885]
[1735677718323,31.16136956,194.51,194.47,2.5755]
[1735677719629,2.575,194.51,194.47,2.5755]
[1735677721417,35.09842841,194.52,194.47,2.5755]
[1735677721628,2.5752,194.5,194.47,2.5755]
[1735677725326,28.58636956,194.52,194.49,6.51205885]
[1735677725725,28.58636956,194.52,194.51,2.575]
[1735677726129,28.58636956,194.54,194.49,6.51205885]
[1735677726325,28.58636956,194.54,194.52,2.5748]
[1735677727331,2.5745,194.55,194.52,2.5748]
[1735677727626,10.37568107,194.57,194.5,2.575]
[1735677727837,6.51205885,194.55,194.5,2.575]
[1735677728025,2.5747,194.54,194.49,6.51205885]
[1735677728228,2.5747,194.54,194.5,2.5751]
[1735677728531,6.51205885,194.55,194.48,3.02]
[1735677728732,2.5748,194.53,194.48,3.02]
[1735677729631,2.5748,194.53,194.49,2.5752]
[1735677729930,11.01021461,194.54,194.49,6.51205885]
[1735677730121,7.14659239,194.54,194.49,6.51205885]
[1735677730428,7.14659239,194.54,194.52,2.5749]
[1735677731235,9.72099239,194.56,194.51,6.51205885]
[1735677731432,7.14659239,194.56,194.53,6.51205885]
[1735677731923,7.14659239,194.56,194.55,9.08655885]
[1735677732427,41.19256708,194.58,194.54,3.02]
[1735677732628,41.19256708,194.58,194.55,6.51205885]
[1735677733438,71.25998593,194.6,194.55,6.51205885]
[1735677733439,31.16026956,194.6,194.57,2.5742]
[1735677733730,0.7952145,194.59,194.57,2.5742]
[1735677734232,28.58636956,194.6,194.55,6.51205885]
[1735677734628,7.14659239,194.6,194.55,6.51205885]
[1735677735028,7.14659239,194.6,194.57,6.51205885]
[1735677735335,7.14659239,194.6,194.58,2.574]
[1735677735530,2.5737,194.61,194.55,6.51205885]
[1735677735928,6.51205885,194.57,194.52,2.5748]
[1735677736127,6.51205885,194.57,194.49,6.51205885]
[1735677736527,2.5745,194.55,194.5,2.5751]
[1735677737631,2.5745,194.55,194.51,2.575]
[1735677738035,6.51205885,194.55,194.47,9.53205885]
[1735677738238,1.5839,194.57,194.5,2.5751]
[1735677738535,0.79535517,194.56,194.5,2.5751]
[1735677738833,3.02,194.55,194.4,1.5132]
[1735677739030,0.79535517,194.54,194.42,10.17190005]
[1735677739230,2.5751,194.51,194.42,10.17190005]
[1735677739532,2.5751,194.51,194.47,2.5755]
[1735677741237,2.5753,194.49,194.45,2.5757]
[1735677742529,2.5754,194.48,194.44,2.5759]
[1735677742730,1.557,194.51,194.4,3.02]
[1735677742933,0.79565955,194.5,194.4,3.02]
[1735677743132,2.5757,194.47,194.42,2.5761]
[1735677743331,2.5757,194.47,194.4,3.02]
[1735677743332,3.02,194.5,194.39,40.09023773]
[1735677743538,2.2417017,194.49,194.39,29.91833768]
[1735677743738,0.7957017,194.48,194.38,2.07088061]
[1735677744135,11.64440802,194.48,194.38,2.07088061]
[1735677744337,0.7957017,194.47,194.38,2.07088061]
[1735677744831,4.65842997,194.47,194.38,4.64748061]
[1735677745037,0.7957017,194.46,194.38,2.07088061]
[1735677745234,32.44909783,194.47,194.38,2.07088061]
[1735677745540,2.576,194.44,194.39,2.5766]
[1735677748035,2.576,194.44,194.38,2.07088061]
[1735677749139,2.576,194.44,194.39,2.5766]
[1735677749332,3.02,194.45,194.3,28.59237344]
[1735677749531,2.5766,194.4,194.35,2.577]
[1735677750533,2.5766,194.39,194.34,2.5772]
[1735677751238,11.72190005,194.43,194.28,13.19190005]
[1735677751445,3.81612304,194.42,194.28,13.19190005]
[1735677751633,0.79612304,194.41,194.31,10.17190005]
[1735677752234,1.592,194.4,194.31,10.17190005]
[1735677752436,0.79615462,194.39,194.31,10.17190005]
[1735677752636,2.5769,194.37,194.33,2.5774]
[1735677752840,1.592,194.4,194.29,3.02]
[1735677753036,2.38085215,194.39,194.29,3.02]
[1735677753235,0.7962089,194.38,194.29,3.02]
[1735677753444,3.02,194.37,194.27,10.17190005]
[1735677753838,2.5775,194.33,194.28,2.5779]
[1735677755253,2.5776,194.32,194.27,2.5781]
[1735677755942,13.19190005,194.37,194.27,2.5781]
[1735677756147,2.5777,194.31,194.27,2.5781]
[1735677757747,13.19190005,194.37,194.27,2.5781]
[1735677757945,2.5775,194.32,194.27,2.5781]
[1735677758450,2.5775,194.32,194.24,10.17190005]
[1735677758451,2.5775,194.32,194.28,2.578]
[1735677758850,2.5774,194.34,194.24,10.17190005]
[1735677759052,3.02,194.37,194.27,10.17190005]
[1735677759251,0.7963277,194.36,194.27,10.17190005]
[1735677759948,2.577,194.36,194.27,10.17190005]
[1735677760752,3.02,194.37,194.25,10.17190005]
[1735677760951,13.19190005,194.37,194.26,10.17190005]
[1735677761154,2.5773,194.34,194.29,2.5779]
[1735677761552,2.5773,194.34,194.26,10.17190005]
[1735677761949,13.19190005,194.37,194.26,10.17190005]
[1735677762147,2.5771,194.34,194.26,10.17190005]
[1735677762556,2.5771,194.34,194.3,2.5775]
[1735677763357,3.02,194.37,194.26,10.17190005]
[1735677763552,4.6047,194.39,194.29,10.17190005]
[1735677763954,2.5766,194.37,194.33,2.5771]
[1735677764756,4.6047,194.39,194.29,10.17190005]
[1735677764957,2.5765,194.38,194.34,2.577]
[1735677765759,2.5764,194.39,194.35,2.5768]
[1735677766056,4.57,194.43,194.33,3.02]
[1735677766853,2.5761,194.41,194.36,2.5767]
[1735677767255,1.55,194.43,194.35,10.17190005]
[1735677768059,1.55,194.43,194.39,2.5763]
[1735677770757,2.5761,194.41,194.37,2.5766]
[1735677771359,2.5762,194.4,194.36,2.5767]
[1735677771760,1.55,194.43,194.33,13.19190005]
[1735677771955,1.55,194.43,194.37,2.5765]
[1735677772762,2.576,194.42,194.37,2.5765]
[1735677773958,3.02,194.46,194.39,2.5762]
[1735677775460,2.5759,194.43,194.39,2.5762]
[1735677776861,3.02,194.46,194.36,13.21190005]
[1735677777156,1.5793,194.48,194.39,10.17190005]
[1735677777361,2.5752,194.48,194.44,2.5756]
[1735677779156,7.14659239,194.53,194.45,10.17190005]
[1735677779353,7.14659239,194.53,194.48,10.17190005]
[1735677779560,7.14659239,194.53,194.52,2.5746]
[1735677779960,28.58636956,194.57,194.52,2.5746]
[1735677780149,31.16036956,194.57,194.52,2.5746]
[1735677780758,2.5741,194.56,194.51,2.5747]
[1735677781259,2.5741,194.56,194.48,10.17190005]
[1735677782257,1.4633,194.58,194.48,10.17190005]
[1735677782472,0.79528226,194.57,194.46,3.04]
[1735677782764,0.79528226,194.57,194.5,2.5749]
[1735677782964,1.4633,194.58,194.48,10.17190005]
[1735677783657,2.5742,194.56,194.51,2.5746]
[1735677787857,2.5746,194.53,194.49,2.5749]
[1735677789469,2.5741,194.56,194.52,2.5746]
[1735677790066,1.4633,194.58,194.48,10.17190005]
[1735677790271,2.5742,194.55,194.51,2.5747]
[1735677790971,2.5747,194.52,194.48,10.17190005]
[1735677791473,2.5747,194.52,194.47,2.5752]
[1735677791865,2.5747,194.52,194.48,2.5751]
[1735677797567,13.21190005,194.58,194.46,2.5753]
[1735677797773,10.17190005,194.55,194.43,3.04]
[1735677797967,2.39832422,194.54,194.43,3.04]
[1735677798168,2.5748,194.51,194.43,3.04]
[1735677799172,2.5746,194.52,194.48,2.575]
[1735677799665,3.04,194.57,194.48,10.17190005]
[1735677799867,3.04,194.57,194.52,2.5746]
[1735677800672,2.5742,194.56,194.52,2.5746]
[1735677801067,2.5742,194.56,194.48,13.21190005]
[1735677801474,2.5743,194.55,194.48,13.21190005]
[1735677801665,3.04,194.57,194.48,13.21190005]
[1735677801867,0.79539758,194.56,194.48,13.21190005]
[1735677802277,3.04,194.57,194.48,13.21190005]
[1735677802979,1.5413,194.6,194.48,13.21190005]
[1735677803187,7.14659239,194.58,194.48,13.21190005]
[1735677803979,2.5741,194.56,194.52,2.5745]
[1735677805983,2.5741,194.56,194.53,2.5745]
[1735677811685,28.58636956,194.6,194.54,6.50759596]
[1735677811886,28.58636956,194.59,194.57,6.50759596]
[1735677812283,28.58636956,194.59,194.58,2.5738]
[1735677812687,7.14659239,194.6,194.58,2.5738]
[1735677813692,7.14659239,194.61,194.58,2.5738]
[1735677815189,9.71999239,194.61,194.58,2.5738]
[1735677818296,2.5734,194.61,194.58,2.5738]
[1735677819399,2.5736,194.6,194.55,6.50759596]
[1735677819587,6.50759596,194.62,194.55,6.50759596]
[1735677819791,6.50759596,194.6,194.53,6.50759596]
[1735677820195,6.50759596,194.58,194.51,6.50759596]
[1735677821397,8.39204832,194.59,194.53,6.50759596]
[1735677821598,7.14659239,194.58,194.53,6.50759596]
[1735677822093,2.574,194.57,194.53,9.08199596]
[1735677824101,2.5741,194.56,194.53,9.08199596]
[1735677825404,33.11566956,194.59,194.53,9.08199596]
[1735677825604,2.574,194.57,194.54,2.5743]
[1735677827202,2.574,194.57,194.55,6.50759596]
[1735677827903,2.574,194.57,194.54,2.5743]
[1735677829201,8.39221033,194.59,194.53,6.50759596]
[1735677829504,11.00950272,194.6,194.55,6.50759596]
[1735677829706,7.14659239,194.6,194.55,6.50759596]
[1735677829893,7.14659239,194.6,194.57,2.5739]
[1735677830095,28.58636956,194.6,194.57,2.5739]
[1735677830497,2.5737,194.59,194.56,2.5741]
[1735677831305,2.5738,194.58,194.56,2.5741]
[1735677832511,2.5738,194.58,194.55,9.08179596]
[1735677845818,28.58636956,194.6,194.53,6.50759596]
[1735677846013,2.5743,194.55,194.53,6.50759596]
[1735677846215,10.37032034,194.59,194.51,3.0]
[1735677846514,0.79517895,194.58,194.51,9.50759596]
[1735677846715,13.8654107,194.58,194.51,9.50759596]
[1735677846915,0.79526806,194.57,194.51,9.50759596]
[1735677847111,4.65799244,194.57,194.51,9.50759596]
[1735677847316,7.14659239,194.56,194.51,9.50759596]
[1735677847518,11.00931677,194.56,194.51,6.50759596]
[1735677847920,2.5744,194.54,194.51,6.50759596]
[1735677851121,2.5744,194.54,194.51,9.08229596]
[1735677852519,3.86341197,194.56,194.49,6.50759596]
[1735677853021,20.21760173,194.56,194.49,6.50759596]
[1735677853221,3.86341197,194.55,194.49,9.08249596]
[1735677853724,3.0,194.54,194.4,35.95344893]
[1735677854021,3.0,194.54,194.47,6.50759596]
[1735677854224,6.86341197,194.54,194.47,6.50759596]
[1735677855320,35.44978153,194.54,194.47,6.50759596]
[1735677855620,31.58636956,194.54,194.47,9.08279596]
[1735677857225,2.5748,194.51,194.47,9.08279596]
[1735677859027,14.01063366,194.54,194.47,9.08279596]
[1735677859229,0.79546856,194.53,194.47,9.08279596]
[1735677859424,31.58636956,194.54,194.47,9.08279596]
[1735677859618,2.5749,194.5,194.47,9.08279596]
[1735677859825,2.5749,194.5,194.47,6.50759596]
[1735677860430,3.86417409,194.53,194.45,6.50759596]
[1735677860431,2.5752,194.48,194.45,6.50759596]
[1735677861420,2.5753,194.47,194.45,6.50759596]
[1735677862220,2.5752,194.48,194.45,6.50759596]
[1735677863023,2.5753,194.47,194.45,6.50759596]
[1735677863227,3.0,194.49,194.45,6.50759596]
[1735677863928,2.5752,194.48,194.45,6.50759596]
[1735677864723,2.5752,194.48,194.45,9.08309596]
[1735677865433,2.5754,194.46,194.45,6.50759596]
[1735677865634,3.0,194.49,194.45,6.50759596]
[1735677866737,2.98,194.5,194.45,6.50759596]
[1735677867537,2.5752,194.48,194.45,9.08309596]
[1735677868534,2.98,194.5,194.45,2.5755]
[1735677868740,2.5753,194.47,194.45,2.5755]
[1735677871744,4.4278,194.5,194.43,6.50759596]
[1735677872838,6.50759596,194.49,194.43,6.50759596]
[1735677873244,4.4278,194.5,194.44,2.5757]
[1735677873245,2.5753,194.48,194.44,2.5757]
[1735677873543,4.4278,194.5,194.44,2.5757]
[1735677874038,2.5754,194.47,194.44,2.5757]
[1735677876644,4.4278,194.5,194.4,30.80114893]
[1735677876849,2.5758,194.44,194.4,9.08379596]
[1735677878349,6.50759596,194.47,194.4,9.08379596]
[1735677878350,2.5758,194.43,194.4,9.08379596]
[1735677879744,6.50759596,194.47,194.4,9.08379596]
[1735677879945,2.5757,194.44,194.4,9.08379596]
[1735677880344,2.5757,194.44,194.42,6.50759596]
[1735677882646,7.14659239,194.48,194.4,9.08379596]
[1735677882846,0.79578529,194.47,194.4,9.08379596]
[1735677883052,7.14659239,194.48,194.4,9.08379596]
[1735677883352,6.50759596,194.43,194.36,2.5767]
[1735677883654,9.48759596,194.43,194.36,6.50759596]
[1735677883947,3.86562158,194.47,194.42,6.50759596]
[1735677884252,7.14659239,194.48,194.42,6.50759596]
[1735677884253,19.30092305,194.48,194.42,6.50759596]
[1735677884552,28.58636956,194.45,194.42,9.08349596]
[1735677885551,2.5756,194.45,194.42,9.08349596]
[1735677889152,2.5756,194.45,194.42,2.5759]
[1735677892658,13.65418835,194.46,194.4,6.50759596]
[1735677893351,13.65418835,194.46,194.4,9.08369596]
[1735677893352,35.09396552,194.46,194.4,9.08369596]
[1735677894256,2.5758,194.44,194.4,9.08369596]
[1735677894653,2.5759,194.43,194.4,9.08369596]
[1735677896649,2.5759,194.43,194.4,2.5761]
[1735677897558,2.5759,194.43,194.4,9.08369596]
[1735677899857,2.5757,194.45,194.41,2.576]
[1735677900355,35.09396552,194.46,194.38,9.08399596]
[1735677900556,6.50759596,194.44,194.36,6.50759596]
[1735677901054,2.576,194.42,194.37,2.5766]
[1735677901357,6.50759596,194.42,194.34,6.50759596]
[1735677902361,2.5763,194.4,194.36,2.5767]
[1735677902762,2.5763,194.4,194.36,9.08429596]
[1735677902962,2.5763,194.4,194.36,6.50759596]
[1735677903266,2.5763,194.4,194.37,2.5766]
[1735677904462,2.5763,194.4,194.36,6.50759596]
[1735677904863,31.56636956,194.43,194.36,6.50759596]
[1735677904864,2.5761,194.41,194.36,6.50759596]
[1735677905064,28.58636956,194.43,194.41,2.5761]
[1735677905364,28.58636956,194.43,194.4,6.50759596]
[1735677906265,2.5757,194.44,194.41,2.5761]
[1735677909268,2.5757,194.44,194.39,6.50759596]
[1735677909468,2.5757,194.44,194.4,2.5762]
[1735677910966,2.5757,194.44,194.41,6.50759596]
[1735677911162,28.58636956,194.45,194.41,6.50759596]
[1735677911368,28.58636956,194.45,194.43,6.50759596]
[1735677911869,28.58636956,194.45,194.44,2.5757]
[1735677912772,7.14659239,194.47,194.45,2.5755]
[1735677913069,7.14659239,194.47,194.46,6.50759596]
[1735677913270,4.74989239,194.47,194.46,9.08299596]
[1735677913471,2.40319239,194.47,194.46,9.08299596]
[1735677913671,21.43977717,194.49,194.46,6.50759596]
[1735677913872,21.43977717,194.49,194.48,9.08279596]
[1735677914069,21.43977717,194.49,194.43,2.98]
[1735677914268,21.43977717,194.49,194.48,6.50759596]
[1735677914468,21.43977717,194.53,194.48,9.08279596]
[1735677915171,21.43977717,194.53,194.52,6.50759596]
[1735677915569,33.98869734,194.54,194.52,6.50759596]
[1735677915971,33.98869734,194.54,194.5,6.50759596]
[1735677916369,33.98869734,194.54,194.51,2.5747]
[1735677916969,4.0516,194.55,194.51,2.5747]
[1735677917768,1.4803,194.58,194.54,6.50759596]
[1735677918166,1.5509,194.59,194.54,6.50759596]
[1735677918675,21.43977717,194.61,194.56,6.50759596]
[1735677919171,2.5737,194.59,194.56,6.50759596]
[1735677919768,2.5739,194.58,194.54,2.5743]
[1735677919968,9.48759596,194.59,194.52,6.50759596]
[1735677921177,2.5742,194.56,194.52,6.50759596]
[1735677921673,6.50759596,194.57,194.5,6.50759596]
[1735677921874,6.50759596,194.55,194.48,6.50759596]
[1735677922278,6.50759596,194.53,194.48,6.50759596]
[1735677923273,2.5749,194.51,194.48,6.50759596]
[1735677923578,8.04169596,194.53,194.47,2.5752]
[1735677924074,8.04169596,194.53,194.46,6.50759596]
[1735677924275,6.50759596,194.51,194.3,5.155]
[1735677924478,6.50759596,194.49,194.42,6.50759596]
[1735677924979,7.96109596,194.51,194.46,6.50759596]
[1735677925179,1.4535,194.51,194.46,6.50759596]
[1735677925971,4.0283,194.51,194.47,2.5752]
[1735677926479,4.0283,194.51,194.48,2.5751]
[1735677927579,4.0355,194.52,194.49,2.575]
[1735677928577,4.0355,194.52,194.48,2.5751]
[1735677929778,2.5749,194.5,194.47,2.5753]
[1735677929977,6.50759596,194.5,194.43,6.50759596]
[1735677930377,2.5757,194.45,194.41,9.08369596]
[1735677930576,6.50759596,194.48,194.41,6.50759596]
[1735677930882,2.5759,194.43,194.38,2.5764]
[1735677931082,6.50759596,194.46,194.39,6.50759596]
[1735677931976,2.5759,194.43,194.39,9.08389596]
[1735677938879,6.50759596,194.46,194.29,36.74520924]
[1735677939083,6.50759596,194.44,194.37,6.50759596]
[1735677939280,9.48759596,194.44,194.37,6.50759596]
[1735677939481,2.576,194.42,194.3,4.4562]
[1735677939682,9.48759596,194.44,194.38,6.50759596]
[1735677940188,9.48759596,194.44,194.36,6.50759596]
[1735677940392,6.50759596,194.42,194.36,6.50759596]
[1735677941092,6.50759596,194.4,194.34,6.50759596]
[1735677941288,6.50759596,194.37,194.17,256.79663994]
[1735677941593,2.5771,194.34,194.29,9.08519596]
[1735677941989,6.50759596,194.35,194.29,6.50759596]
[1735677942192,2.5774,194.31,194.27,6.50759596]
[1735677942586,2.5774,194.31,194.25,2.98]
[1735677942788,2.5774,194.31,194.27,6.50759596]
[1735677946292,2.5779,194.28,194.25,6.50759596]
[1735677946587,4.4572,194.36,194.09,5.1605]
[1735677946588,6.50759596,194.29,194.22,6.50759596]
[1735677946790,1.5293,194.28,194.22,6.50759596]
[1735677947293,6.50759596,194.27,194.2,6.50759596]
[1735677948190,6.50759596,194.27,194.12,1.5789]
[1735677948382,6.50759596,194.25,194.18,6.50759596]
[1735677948586,2.5786,194.23,194.18,9.08659596]
[1735677948789,9.08619596,194.23,194.18,2.579]
[1735677949194,9.08619596,194.23,194.17,2.5792]
[1735677949793,9.08619596,194.23,194.18,2.5791]
[1735677951490,2.98,194.24,194.18,6.50759596]
[1735677951795,11.01689596,194.28,194.2,6.50759596]
[1735677951990,0.79658809,194.27,194.2,6.50759596]
[1735677952196,3.37448809,194.27,194.22,2.5786]
[1735677952395,2.5779,194.27,194.22,2.5786]
[1735677952799,2.5779,194.27,194.2,6.50759596]
[1735677952995,2.5779,194.27,194.22,2.5786]
[1735677953195,2.5779,194.27,194.2,6.50759596]
[1735677954506,2.5779,194.27,194.23,2.5784]
[1735677954707,11.01689596,194.28,194.2,6.50759596]
[1735677954910,1.5293,194.28,194.26,2.578]
[1735677955603,1.5293,194.28,194.24,6.50759596]
[1735677955803,1.5293,194.28,194.18,1.4767]
[1735677955804,2.98,194.3,194.28,2.5778]
[1735677956106,9.08489596,194.32,194.28,2.5778]
[1735677956908,2.5774,194.31,194.28,2.5778]
[1735677957208,2.5774,194.31,194.27,2.5779]
[1735677959210,2.98,194.33,194.3,2.5775]
[1735677959506,2.577,194.34,194.3,2.5775]
[1735677960705,2.5772,194.33,194.3,2.5775]
[1735677961904,6.50759596,194.31,194.18,1.4767]
[1735677962210,6.50759596,194.2,194.04,2.95137385]
[1735677962411,6.50759596,194.13,194.05,6.50759596]
[1735677963509,2.58,194.12,194.06,2.5807]
[1735677963702,6.50759596,194.11,194.06,2.5807]
[1735677964010,9.08769596,194.11,194.05,6.50759596]
[1735677964208,6.50759596,194.09,193.99,2.98]
[1735677964412,2.98,194.1,193.99,2.98]
[1735677964706,2.98,194.09,193.99,2.98]
[1735677965312,10.22016765,194.12,194.01,10.22016765]
[1735677966314,2.5802,194.11,194.03,2.581]
[1735677966613,10.22016765,194.12,194.01,10.22016765]
[1735677966917,12.80006765,194.12,194.01,10.22016765]
[1735677968017,12.80006765,194.12,194.06,2.5807]
[1735677968704,2.5802,194.11,194.04,2.581]
[1735677969209,10.22016765,194.12,194.04,2.581]
[1735677969916,2.5802,194.1,194.04,2.581]
[1735677970120,10.22016765,194.12,193.99,13.20016765]
[1735677970615,10.22016765,194.06,193.98,2.5817]
[1735677970916,4.4343,194.05,193.98,2.5817]
[1735677971709,2.5811,194.04,193.98,2.5817]
[1735677971917,2.5811,194.04,193.99,2.5816]
[1735677973116,4.4343,194.05,194.01,2.5814]
[1735677973417,13.20016765,194.09,193.97,10.22016765]
[1735677973616,1.4543,194.08,193.97,10.22016765]
[1735677973813,2.5807,194.07,194.01,2.5813]
[1735677974313,2.5807,194.07,193.97,13.20016765]
[1735677974509,1.4543,194.08,193.97,13.20016765]
[1735677975116,4.0348,194.08,194.03,2.5811]
[1735677976013,1.4543,194.08,194.04,2.581]
[1735677976319,1.4543,194.08,193.97,13.20016765]
[1735677976518,1.4543,194.08,193.98,1.5102]
[1735677976720,1.4543,194.08,194.04,2.581]
[1735677977016,4.0348,194.08,193.98,1.5102]
[1735677977216,4.0348,194.08,194.02,2.5812]
[1735677977217,1.4543,194.08,194.02,2.5812]
[1735677977611,2.5807,194.06,193.97,13.20016765]